[Event "*** Titled Tuesday Blitz"]
[Site "Chess.com"]
[Date "2020.04.28"]
[Round "5"]
[White "2nd_life"]
[Black "GodDMuhammad"]
[Result "1-0"]
[WhiteElo "2405"]
[BlackElo "2201"]
[TimeControl "180+1"]
[EndTime "10:56:10 PDT"]
[Termination "2nd_life won by resignation"]

1. e4 {[%clk 0:03:00.9]} 1... c6 {[%clk 0:02:52.2]} 2. d4 {[%clk 0:02:59.9]}
2... d5 {[%clk 0:02:51.8]} 3. e5 {[%clk 0:02:58.8]} 3... Bf5 {[%clk 0:02:50]} 4.
h4 {[%clk 0:02:58.5]} 4... h6 {[%clk 0:02:47.3]} 5. g4 {[%clk 0:02:57.6]} 5...
Bd7 {[%clk 0:02:45.5]} 6. h5 {[%clk 0:02:56]} 6... e6 {[%clk 0:02:45.6]} 7. c3
{[%clk 0:02:53.1]} 7... c5 {[%clk 0:02:45.4]} 8. f4 {[%clk 0:02:49.2]} 8... Nc6
{[%clk 0:02:44.8]} 9. Nf3 {[%clk 0:02:48.8]} 9... Qb6 {[%clk 0:02:44.5]} 10. Kf2
{[%clk 0:02:44.9]} 10... cxd4 {[%clk 0:02:30.7]} 11. cxd4 {[%clk 0:02:44]} 11...
Rc8 {[%clk 0:02:18.4]} 12. Nc3 {[%clk 0:02:42.3]} 12... Bb4 {[%clk 0:01:58.7]}
13. Kg3 {[%clk 0:02:22.3]} 13... f5 {[%clk 0:01:37.5]} 14. gxf5 {[%clk
0:02:16.6]} 14... Nge7 {[%clk 0:01:33.8]} 15. Bh3 {[%clk 0:02:08.3]} 15... exf5
{[%clk 0:01:23.2]} 16. Na4 {[%clk 0:01:49.9]} 16... Qd8 {[%clk 0:00:53.9]} 17.
a3 {[%clk 0:01:45.9]} 17... Ba5 {[%clk 0:00:53.2]} 18. b4 {[%clk 0:01:45]} 18...
Bb6 {[%clk 0:00:52.9]} 19. Nc5 {[%clk 0:01:44.5]} 19... Bxc5 {[%clk 0:00:52.3]}
20. dxc5 {[%clk 0:01:44.5]} 20... Be6 {[%clk 0:00:52.4]} 21. Bb2 {[%clk
0:01:42.3]} 21... O-O {[%clk 0:00:49.9]} 22. Rg1 {[%clk 0:01:41.7]} 22... Qe8
{[%clk 0:00:47.3]} 23. Nh4 {[%clk 0:01:34.5]} 23... d4 {[%clk 0:00:41.1]} 24.
Kh2 {[%clk 0:01:34]} 24... Nd5 {[%clk 0:00:39.9]} 25. Ng6 {[%clk 0:01:29.6]}
25... Rf7 {[%clk 0:00:32.7]} 26. Qd2 {[%clk 0:01:21.3]} 26... Rd8 {[%clk
0:00:27.3]} 27. Rg3 {[%clk 0:01:20.8]} 27... Ne3 {[%clk 0:00:22.3]} 28. Rag1
{[%clk 0:01:17.7]} 28... Ng4+ {[%clk 0:00:17.4]} 29. Kg2 {[%clk 0:00:57.3]}
29... Qd7 {[%clk 0:00:15.8]} 30. Kf1 {[%clk 0:00:53.7]} 30... Bc4+ {[%clk
0:00:15.3]} 31. Ke1 {[%clk 0:00:52.7]} 31... Ne7 {[%clk 0:00:15.4]} 32. Bxg4
{[%clk 0:00:38.8]} 32... fxg4 {[%clk 0:00:15.1]} 33. Rxg4 {[%clk 0:00:39.1]}
33... Nxg6 {[%clk 0:00:14.1]} 34. Rxg6 {[%clk 0:00:38.8]} 34... Qh3 {[%clk
0:00:11.7]} 35. Bxd4 {[%clk 0:00:28.2]} 35... Qh4+ {[%clk 0:00:09.2]} 36. Kd1
{[%clk 0:00:24.6]} 36... Qxh5+ {[%clk 0:00:05.6]} 37. Kc1 {[%clk 0:00:24.1]}
37... Bd5 {[%clk 0:00:03.8]} 38. e6 {[%clk 0:00:24]} 38... Bxe6 {[%clk
0:00:02.9]} 39. Rxg7+ {[%clk 0:00:24.2]} 39... Rxg7 {[%clk 0:00:02.8]} 40. Rxg7+
{[%clk 0:00:25.1]} 40... Kf8 {[%clk 0:00:03.1]} 41. Kb2 {[%clk 0:00:16.2]} 41...
Bf5 {[%clk 0:00:02.6]} 42. Rxb7 {[%clk 0:00:11.6]} 42... Qh1 {[%clk 0:00:02.4]}
43. Bg7+ {[%clk 0:00:11.2]} 43... Kg8 {[%clk 0:00:01.7]} 44. Qxd8+ {[%clk
0:00:11]} 44... Kh7 {[%clk 0:00:02.5]} 45. Qh8+ {[%clk 0:00:09]} 45... Kg6
{[%clk 0:00:02.7]} 46. Qxh6+ {[%clk 0:00:09.2]} 46... Qxh6 {[%clk 0:00:02.1]}
47. Bxh6 {[%clk 0:00:10.1]} 47... Kxh6 {[%clk 0:00:03]} 48. Rxa7 {[%clk
0:00:10.4]} 1-0

[Event "*** Titled Tuesday Blitz"]
[Site "Chess.com"]
[Date "2020.04.28"]
[Round "5"]
[White "Gurvich_Vitaly"]
[Black "vugarrasulov"]
[Result "0-1"]
[WhiteElo "2554"]
[BlackElo "2765"]
[TimeControl "180+1"]
[EndTime "10:56:11 PDT"]
[Termination "vugarrasulov won on time"]

1. e4 {[%clk 0:03:00.9]} 1... c5 {[%clk 0:02:59.2]} 2. Nf3 {[%clk 0:02:59]} 2...
d6 {[%clk 0:02:59.4]} 3. d4 {[%clk 0:02:59]} 3... cxd4 {[%clk 0:03:00.3]} 4.
Nxd4 {[%clk 0:02:59.1]} 4... Nf6 {[%clk 0:03:00.8]} 5. Nc3 {[%clk 0:02:59.2]}
5... Nc6 {[%clk 0:03:01.4]} 6. Bg5 {[%clk 0:02:58.6]} 6... e6 {[%clk 0:03:00.1]}
7. Qd2 {[%clk 0:02:58.3]} 7... a6 {[%clk 0:03:00.4]} 8. O-O-O {[%clk 0:02:58.1]}
8... Bd7 {[%clk 0:03:00.8]} 9. f4 {[%clk 0:02:53.9]} 9... b5 {[%clk 0:03:00.8]}
10. Bxf6 {[%clk 0:02:46.4]} 10... gxf6 {[%clk 0:03:00.4]} 11. Kb1 {[%clk
0:02:45]} 11... Qb6 {[%clk 0:02:58.1]} 12. Nxc6 {[%clk 0:02:44.4]} 12... Bxc6
{[%clk 0:02:57.1]} 13. Bd3 {[%clk 0:02:44.1]} 13... h5 {[%clk 0:02:51.1]} 14.
Ne2 {[%clk 0:02:34]} 14... b4 {[%clk 0:02:36.6]} 15. Qe1 {[%clk 0:02:15.7]}
15... h4 {[%clk 0:02:34]} 16. f5 {[%clk 0:02:12.3]} 16... e5 {[%clk 0:02:34.1]}
17. Nc1 {[%clk 0:02:12.2]} 17... O-O-O {[%clk 0:02:23.5]} 18. Bc4 {[%clk
0:02:11.9]} 18... a5 {[%clk 0:02:16.5]} 19. Bxf7 {[%clk 0:02:10.5]} 19... Bh6
{[%clk 0:02:15.8]} 20. Be6+ {[%clk 0:02:04.3]} 20... Kb8 {[%clk 0:02:13.6]} 21.
Bd5 {[%clk 0:02:02.3]} 21... Bb5 {[%clk 0:02:13]} 22. Nd3 {[%clk 0:02:00.8]}
22... Be3 {[%clk 0:02:06.1]} 23. g3 {[%clk 0:01:48.5]} 23... h3 {[%clk
0:01:59.5]} 24. Qe2 {[%clk 0:01:34.6]} 24... Bd4 {[%clk 0:01:58.9]} 25. Qf3
{[%clk 0:01:30.2]} 25... Rc8 {[%clk 0:01:54.6]} 26. Rd2 {[%clk 0:01:29.7]} 26...
Be8 {[%clk 0:01:41.9]} 27. Nf2 {[%clk 0:00:48.8]} 27... a4 {[%clk 0:01:40.2]}
28. g4 {[%clk 0:00:46.3]} 28... a3 {[%clk 0:01:32.8]} 29. b3 {[%clk 0:00:42.6]}
29... Qc5 {[%clk 0:01:13.1]} 30. Nxh3 {[%clk 0:00:07.9]} 30... Rc7 {[%clk
0:01:03.2]} 31. Nf2 {[%clk 0:00:04.1]} 31... Be3 {[%clk 0:00:59.2]} 32. Nd3
{[%clk 0:00:03.3]} 32... Qb6 {[%clk 0:00:48.3]} 33. Re2 {[%clk 0:00:03.2]} 33...
Bd4 {[%clk 0:00:48.5]} 34. c4 {[%clk 0:00:02.3]} 34... bxc3 {[%clk 0:00:47.5]}
35. Kc2 {[%clk 0:00:02.7]} 35... Rch7 {[%clk 0:00:41.1]} 36. h4 {[%clk 0:00:02]}
36... Rxh4 {[%clk 0:00:40.2]} 37. Rxh4 {[%clk 0:00:02.9]} 37... Rxh4 {[%clk
0:00:40.7]} 38. Qg3 {[%clk 0:00:02.8]} 38... Rh1 {[%clk 0:00:39.3]} 39. Re1
{[%clk 0:00:02.3]} 39... Bf2 {[%clk 0:00:34.6]} 40. Rxh1 {[%clk 0:00:02.3]}
40... Bxg3 {[%clk 0:00:34.4]} 41. Rh8 {[%clk 0:00:03.2]} 41... Qe3 {[%clk
0:00:26.8]} 42. Rxe8+ {[%clk 0:00:02.4]} 42... Kc7 {[%clk 0:00:27.4]} 43. Kxc3
{[%clk 0:00:02.9]} 43... Be1+ {[%clk 0:00:26.7]} 44. Kc4 {[%clk 0:00:01.3]}
44... Qd4+ {[%clk 0:00:26.8]} 45. Kb5 {[%clk 0:00:01.6]} 45... Qxd3+ {[%clk
0:00:24.5]} 46. Bc4 {[%clk 0:00:02.5]} 46... Qxe4 {[%clk 0:00:25]} 47. Re7+
{[%clk 0:00:02.7]} 47... Kd8 {[%clk 0:00:25.3]} 48. Rf7 {[%clk 0:00:02.6]} 48...
d5 {[%clk 0:00:23.7]} 49. Bf1 {[%clk 0:00:02.6]} 49... Qf3 {[%clk 0:00:21.1]}
0-1

[Event "*** Titled Tuesday Blitz"]
[Site "Chess.com"]
[Date "2020.04.28"]
[Round "5"]
[White "Hasangatin_Ramil"]
[Black "kaumandur01"]
[Result "0-1"]
[WhiteElo "2454"]
[BlackElo "2772"]
[TimeControl "180+1"]
[EndTime "10:56:11 PDT"]
[Termination "kaumandur01 won on time"]

1. e4 {[%clk 0:02:59.9]} 1... c5 {[%clk 0:02:59.7]} 2. Nf3 {[%clk 0:02:59.3]}
2... d6 {[%clk 0:03:00.3]} 3. d4 {[%clk 0:02:58.8]} 3... cxd4 {[%clk 0:03:01.2]}
4. Qxd4 {[%clk 0:02:59.4]} 4... Nf6 {[%clk 0:03:01.4]} 5. e5 {[%clk 0:02:59.1]}
5... Nc6 {[%clk 0:02:58]} 6. Bb5 {[%clk 0:02:59]} 6... Qa5+ {[%clk 0:02:57.2]}
7. Nc3 {[%clk 0:02:58.9]} 7... Qxb5 {[%clk 0:02:57.8]} 8. Nxb5 {[%clk
0:02:59.6]} 8... Nxd4 {[%clk 0:02:58.3]} 9. Nfxd4 {[%clk 0:02:59.9]} 9... dxe5
{[%clk 0:02:58.8]} 10. Nc7+ {[%clk 0:02:59.9]} 10... Kd7 {[%clk 0:02:58.8]} 11.
Nxa8 {[%clk 0:03:00.8]} 11... exd4 {[%clk 0:02:59.4]} 12. Bf4 {[%clk 0:03:00.9]}
12... Nd5 {[%clk 0:02:39.2]} 13. O-O-O {[%clk 0:03:00.4]} 13... b6 {[%clk
0:01:53.2]} 14. Rxd4 {[%clk 0:02:56.7]} 14... Kc6 {[%clk 0:01:51.7]} 15. Rhd1
{[%clk 0:01:14.6]} 15... e6 {[%clk 0:01:40.8]} 16. Rxd5 {[%clk 0:00:50]} 16...
exd5 {[%clk 0:01:39.6]} 17. Nc7 {[%clk 0:00:49.8]} 17... Bc5 {[%clk 0:01:18]}
18. Nxd5 {[%clk 0:00:44.8]} 18... Bxf2 {[%clk 0:01:16.3]} 19. Ne7+ {[%clk
0:00:42.2]} 19... Kb7 {[%clk 0:01:15.9]} 20. Nxc8 {[%clk 0:00:42.1]} 20... Kxc8
{[%clk 0:01:16.8]} 21. Rd2 {[%clk 0:00:28.6]} 21... Bc5 {[%clk 0:01:16.3]} 22.
Kd1 {[%clk 0:00:24.3]} 22... Re8 {[%clk 0:01:15.5]} 23. Re2 {[%clk 0:00:23.9]}
23... Rxe2 {[%clk 0:01:14.7]} 24. Kxe2 {[%clk 0:00:23.5]} 24... Kd7 {[%clk
0:01:15.6]} 25. Kd3 {[%clk 0:00:23.6]} 25... Ke6 {[%clk 0:01:15.7]} 26. g4
{[%clk 0:00:21.4]} 26... Kd5 {[%clk 0:01:15.4]} 27. c4+ {[%clk 0:00:20.8]} 27...
Ke6 {[%clk 0:01:13.7]} 28. Ke4 {[%clk 0:00:20]} 28... h6 {[%clk 0:01:12.4]} 29.
Bd2 {[%clk 0:00:19.7]} 29... Bd6 {[%clk 0:01:10.1]} 30. Bc3 {[%clk 0:00:19.2]}
30... g6 {[%clk 0:01:07.3]} 31. h3 {[%clk 0:00:19]} 31... f5+ {[%clk 0:01:07.5]}
32. Kf3 {[%clk 0:00:19.1]} 32... Kd7 {[%clk 0:01:05.5]} 33. gxf5 {[%clk
0:00:18.3]} 33... gxf5 {[%clk 0:01:05.6]} 34. Bd4 {[%clk 0:00:18.1]} 34... Kc6
{[%clk 0:01:04.6]} 35. b3 {[%clk 0:00:17.9]} 35... h5 {[%clk 0:01:03.1]} 36. Be3
{[%clk 0:00:16.3]} 36... a5 {[%clk 0:01:02.3]} 37. Bf4 {[%clk 0:00:15.7]} 37...
Bxf4 {[%clk 0:00:24]} 38. Kxf4 {[%clk 0:00:16.6]} 38... Kc5 {[%clk 0:00:24.8]}
39. Kxf5 {[%clk 0:00:16.8]} 39... Kb4 {[%clk 0:00:25]} 40. Ke4 {[%clk
0:00:16.9]} 40... Ka3 {[%clk 0:00:24.9]} 41. Kd3 {[%clk 0:00:16.7]} 41... Kxa2
{[%clk 0:00:25]} 42. Kc2 {[%clk 0:00:16.8]} 42... Ka3 {[%clk 0:00:25]} 43. Kc3
{[%clk 0:00:15.7]} 43... h4 {[%clk 0:00:24.5]} 44. Kc2 {[%clk 0:00:15.3]} 44...
Kb4 {[%clk 0:00:24.8]} 45. Kb2 {[%clk 0:00:15.2]} 45... a4 {[%clk 0:00:25.3]}
46. bxa4 {[%clk 0:00:15]} 46... Kxc4 {[%clk 0:00:25.4]} 47. Ka3 {[%clk
0:00:14.9]} 47... Kc3 {[%clk 0:00:26]} 48. Ka2 {[%clk 0:00:08.2]} 48... Kb4
{[%clk 0:00:25.8]} 49. Kb2 {[%clk 0:00:06.2]} 49... Kxa4 {[%clk 0:00:25.9]} 0-1

[Event "*** Titled Tuesday Blitz"]
[Site "Chess.com"]
[Date "2020.04.28"]
[Round "5"]
[White "Danfii"]
[Black "Ana_Berke"]
[Result "1-0"]
[WhiteElo "2325"]
[BlackElo "2109"]
[TimeControl "180+1"]
[EndTime "10:56:12 PDT"]
[Termination "Danfii won by resignation"]

1. e4 {[%clk 0:03:00.9]} 1... c5 {[%clk 0:02:59.5]} 2. Nf3 {[%clk 0:03:00.6]}
2... d6 {[%clk 0:02:59.9]} 3. d4 {[%clk 0:03:01.1]} 3... cxd4 {[%clk 0:02:59.1]}
4. Nxd4 {[%clk 0:03:02]} 4... Nf6 {[%clk 0:02:58.4]} 5. Nc3 {[%clk 0:03:02.4]}
5... Nc6 {[%clk 0:02:58.2]} 6. Bg5 {[%clk 0:03:01.9]} 6... Bd7 {[%clk
0:02:57.8]} 7. Qd2 {[%clk 0:02:56]} 7... Rc8 {[%clk 0:02:56.2]} 8. O-O-O {[%clk
0:02:53.1]} 8... Nxd4 {[%clk 0:02:56.2]} 9. Qxd4 {[%clk 0:02:54]} 9... Qa5
{[%clk 0:02:56.3]} 10. Bh4 {[%clk 0:02:28.8]} 10... Qc5 {[%clk 0:02:49.1]} 11.
f3 {[%clk 0:02:21.1]} 11... Qxd4 {[%clk 0:02:48.5]} 12. Rxd4 {[%clk 0:02:22]}
12... a6 {[%clk 0:02:43.6]} 13. a4 {[%clk 0:02:17]} 13... e6 {[%clk 0:02:43.3]}
14. Bg3 {[%clk 0:02:14]} 14... e5 {[%clk 0:02:37.8]} 15. Rd1 {[%clk 0:02:05.4]}
15... Be6 {[%clk 0:02:37.8]} 16. Kb1 {[%clk 0:01:56.9]} 16... Be7 {[%clk
0:02:36.4]} 17. Bh4 {[%clk 0:01:43.7]} 17... O-O {[%clk 0:01:59.9]} 18. Bxf6
{[%clk 0:01:43.4]} 18... gxf6 {[%clk 0:02:00.2]} 19. Nd5 {[%clk 0:01:42.1]}
19... Bxd5 {[%clk 0:01:56.3]} 20. Rxd5 {[%clk 0:01:43]} 20... Rc6 {[%clk
0:01:53.1]} 21. g4 {[%clk 0:01:41.9]} 21... Rfc8 {[%clk 0:01:52.1]} 22. c3
{[%clk 0:01:41.4]} 22... Kf8 {[%clk 0:01:44.9]} 23. Be2 {[%clk 0:01:40]} 23...
Ke8 {[%clk 0:01:45]} 24. h4 {[%clk 0:01:39.3]} 24... Kd7 {[%clk 0:01:44.8]} 25.
h5 {[%clk 0:01:38.9]} 25... h6 {[%clk 0:01:44.7]} 26. Rhd1 {[%clk 0:01:38.6]}
26... Rc5 {[%clk 0:01:37.5]} 27. Kc2 {[%clk 0:01:34]} 27... Rxd5 {[%clk
0:01:36.3]} 28. Rxd5 {[%clk 0:01:34.9]} 28... Rc5 {[%clk 0:01:35.7]} 29. Rd1
{[%clk 0:01:28]} 29... Rc6 {[%clk 0:01:19]} 30. b4 {[%clk 0:01:23.6]} 30... Bd8
{[%clk 0:01:13.2]} 31. Kb3 {[%clk 0:01:22.1]} 31... Ke7 {[%clk 0:01:11.5]} 32.
Bc4 {[%clk 0:01:18.9]} 32... Bb6 {[%clk 0:01:09.8]} 33. Bd5 {[%clk 0:01:11.9]}
33... Rc7 {[%clk 0:01:09.1]} 34. a5 {[%clk 0:01:09]} 34... Ba7 {[%clk
0:01:07.6]} 35. c4 {[%clk 0:01:09.2]} 35... Bd4 {[%clk 0:01:00.3]} 36. Rf1
{[%clk 0:00:59.6]} 36... Be3 {[%clk 0:00:59]} 37. Kc3 {[%clk 0:00:51.2]} 37...
Rd7 {[%clk 0:00:52.1]} 38. Kd3 {[%clk 0:00:51.1]} 38... Bf4 {[%clk 0:00:50.5]}
39. Rb1 {[%clk 0:00:47.2]} 39... Bg3 {[%clk 0:00:46.8]} 40. Ke2 {[%clk
0:00:43.9]} 40... Rc7 {[%clk 0:00:29.5]} 41. b5 {[%clk 0:00:42]} 41... Bf4
{[%clk 0:00:27.6]} 42. bxa6 {[%clk 0:00:38.5]} 42... bxa6 {[%clk 0:00:28]} 43.
Rb6 {[%clk 0:00:38.9]} 43... Bc1 {[%clk 0:00:21.1]} 44. Rxa6 {[%clk 0:00:38.1]}
44... Bb2 {[%clk 0:00:21.4]} 45. Ra8 {[%clk 0:00:37.1]} 45... Bd4 {[%clk
0:00:20.1]} 46. a6 {[%clk 0:00:37.3]} 46... Ra7 {[%clk 0:00:19.8]} 47. Rh8
{[%clk 0:00:30.1]} 47... Rxa6 {[%clk 0:00:19.9]} 48. Rxh6 {[%clk 0:00:30.3]}
48... Ra2+ {[%clk 0:00:19.6]} 49. Ke1 {[%clk 0:00:25.7]} 49... Ra1+ {[%clk
0:00:19.5]} 50. Kd2 {[%clk 0:00:24.7]} 50... Rf1 {[%clk 0:00:19.2]} 51. Rh7
{[%clk 0:00:23.9]} 51... Rxf3 {[%clk 0:00:19.3]} 52. Rxf7+ {[%clk 0:00:23.9]}
52... Ke8 {[%clk 0:00:19.2]} 53. h6 {[%clk 0:00:24.2]} 53... Rf2+ {[%clk
0:00:18.9]} 54. Kd3 {[%clk 0:00:21.9]} 54... Rf3+ {[%clk 0:00:19.2]} 55. Kc2
{[%clk 0:00:22.3]} 55... Rh3 {[%clk 0:00:19.2]} 56. h7 {[%clk 0:00:22.2]} 56...
Be3 {[%clk 0:00:19.4]} 57. Rg7 {[%clk 0:00:21.8]} 57... Bg5 {[%clk 0:00:19.4]}
58. Rg8+ {[%clk 0:00:21.1]} 58... Ke7 {[%clk 0:00:19.7]} 59. h8=Q {[%clk
0:00:21.5]} 59... Rxh8 {[%clk 0:00:18.9]} 60. Rxh8 {[%clk 0:00:22.4]} 1-0

[Event "*** Titled Tuesday Blitz"]
[Site "Chess.com"]
[Date "2020.04.28"]
[Round "5"]
[White "obliviate12"]
[Black "Nbk90"]
[Result "1-0"]
[WhiteElo "2808"]
[BlackElo "2571"]
[TimeControl "180+1"]
[EndTime "10:56:13 PDT"]
[Termination "obliviate12 won on time"]

1. e4 {[%clk 0:03:00.9]} 1... e5 {[%clk 0:02:59.5]} 2. Nf3 {[%clk 0:02:58.4]}
2... Nc6 {[%clk 0:02:59.6]} 3. Bb5 {[%clk 0:02:58.2]} 3... a6 {[%clk 0:02:59.2]}
4. Ba4 {[%clk 0:02:58.5]} 4... d6 {[%clk 0:02:59.5]} 5. O-O {[%clk 0:02:56.6]}
5... Bd7 {[%clk 0:02:58.8]} 6. c3 {[%clk 0:02:56]} 6... g6 {[%clk 0:02:56.2]} 7.
d4 {[%clk 0:02:55.4]} 7... Bg7 {[%clk 0:02:56.7]} 8. Bg5 {[%clk 0:02:55.6]} 8...
f6 {[%clk 0:02:55.3]} 9. Be3 {[%clk 0:02:55.7]} 9... Nh6 {[%clk 0:02:55.2]} 10.
Re1 {[%clk 0:02:55.7]} 10... O-O {[%clk 0:02:44.6]} 11. h3 {[%clk 0:02:46.1]}
11... Nf7 {[%clk 0:02:42.9]} 12. Nbd2 {[%clk 0:02:45.8]} 12... Kh8 {[%clk
0:02:28.8]} 13. Nf1 {[%clk 0:02:45.5]} 13... f5 {[%clk 0:02:25.6]} 14. exf5
{[%clk 0:02:22.3]} 14... gxf5 {[%clk 0:02:26.5]} 15. dxe5 {[%clk 0:02:21.2]}
15... Ncxe5 {[%clk 0:02:16.5]} 16. Bc2 {[%clk 0:01:44.9]} 16... Nxf3+ {[%clk
0:02:09.7]} 17. Qxf3 {[%clk 0:01:43]} 17... Ne5 {[%clk 0:02:09.1]} 18. Qh5
{[%clk 0:01:28.9]} 18... Be8 {[%clk 0:02:03.4]} 19. Qg5 {[%clk 0:01:26.9]} 19...
Bf6 {[%clk 0:01:35.1]} 20. Qf4 {[%clk 0:01:23.5]} 20... Bg7 {[%clk 0:01:25.7]}
21. Rad1 {[%clk 0:01:03.8]} 21... Qf6 {[%clk 0:01:15.3]} 22. Ng3 {[%clk
0:00:56.8]} 22... Ng6 {[%clk 0:01:09]} 23. Qf3 {[%clk 0:00:47.5]} 23... Bc6
{[%clk 0:01:07.1]} 24. Qh5 {[%clk 0:00:45.9]} 24... f4 {[%clk 0:01:01.7]} 25.
Bd4 {[%clk 0:00:44.6]} 25... Qf7 {[%clk 0:00:38.6]} 26. Nf5 {[%clk 0:00:28.6]}
26... Bxd4 {[%clk 0:00:35.4]} 27. Nxd4 {[%clk 0:00:29.5]} 27... Rg8 {[%clk
0:00:27.8]} 28. Bb3 {[%clk 0:00:23.4]} 28... d5 {[%clk 0:00:23.2]} 29. Bc2
{[%clk 0:00:23.2]} 29... Rae8 {[%clk 0:00:19.7]} 30. Rxe8 {[%clk 0:00:20.6]}
30... Rxe8 {[%clk 0:00:18.3]} 31. b4 {[%clk 0:00:20.6]} 31... Qf6 {[%clk
0:00:17.3]} 32. a4 {[%clk 0:00:19.2]} 32... Re5 {[%clk 0:00:15.8]} 33. Qh6
{[%clk 0:00:18.2]} 33... Rg5 {[%clk 0:00:13.9]} 34. b5 {[%clk 0:00:15.6]} 34...
axb5 {[%clk 0:00:12.2]} 35. axb5 {[%clk 0:00:16.5]} 35... Bd7 {[%clk 0:00:12.4]}
36. Nf3 {[%clk 0:00:16.6]} 36... Rf5 {[%clk 0:00:06.4]} 37. Bxf5 {[%clk
0:00:15.5]} 37... Qxf5 {[%clk 0:00:06.1]} 38. Ng5 {[%clk 0:00:14]} 38... Ne5
{[%clk 0:00:06.1]} 39. Rxd5 {[%clk 0:00:12.7]} 39... Qb1+ {[%clk 0:00:03.4]} 40.
Kh2 {[%clk 0:00:12.7]} 1-0

[Event "*** Titled Tuesday Blitz"]
[Site "Chess.com"]
[Date "2020.04.28"]
[Round "5"]
[White "momojunkai"]
[Black "Pittiplatsh"]
[Result "0-1"]
[WhiteElo "2236"]
[BlackElo "2452"]
[TimeControl "180+1"]
[EndTime "10:56:13 PDT"]
[Termination "Pittiplatsh won on time"]

1. d4 {[%clk 0:03:00.9]} 1... Nf6 {[%clk 0:02:59.4]} 2. Bg5 {[%clk 0:03:00.5]}
2... g6 {[%clk 0:03:00.3]} 3. Bxf6 {[%clk 0:03:00.3]} 3... exf6 {[%clk
0:03:00.8]} 4. g3 {[%clk 0:03:00.4]} 4... Bg7 {[%clk 0:03:01.2]} 5. Bg2 {[%clk
0:03:01.3]} 5... O-O {[%clk 0:03:01.5]} 6. e3 {[%clk 0:03:01.8]} 6... d6 {[%clk
0:03:00.8]} 7. Ne2 {[%clk 0:03:01.6]} 7... Nd7 {[%clk 0:03:00.8]} 8. O-O {[%clk
0:03:02.5]} 8... f5 {[%clk 0:03:01.2]} 9. c4 {[%clk 0:03:02.7]} 9... Nf6 {[%clk
0:03:01.8]} 10. Nbc3 {[%clk 0:03:03.2]} 10... Re8 {[%clk 0:03:01.6]} 11. b4
{[%clk 0:03:03.7]} 11... Ne4 {[%clk 0:02:59.4]} 12. Qc2 {[%clk 0:03:02.8]} 12...
Qe7 {[%clk 0:02:56.4]} 13. c5 {[%clk 0:03:02.3]} 13... Nxc3 {[%clk 0:02:38.8]}
14. Nxc3 {[%clk 0:03:00.8]} 14... c6 {[%clk 0:02:39]} 15. a4 {[%clk 0:02:52.9]}
15... h5 {[%clk 0:02:36.6]} 16. Rab1 {[%clk 0:02:43.8]} 16... h4 {[%clk
0:02:34.2]} 17. cxd6 {[%clk 0:02:26.4]} 17... Qxd6 {[%clk 0:02:33.3]} 18. b5
{[%clk 0:02:26.8]} 18... hxg3 {[%clk 0:02:28.6]} 19. hxg3 {[%clk 0:02:26]} 19...
c5 {[%clk 0:02:26.8]} 20. Nd5 {[%clk 0:02:04.6]} 20... cxd4 {[%clk 0:02:05.1]}
21. Nc7 {[%clk 0:02:03.7]} 21... Be6 {[%clk 0:01:32.7]} 22. Nxa8 {[%clk
0:02:00.7]} 22... dxe3 {[%clk 0:01:23.8]} 23. Qc7 {[%clk 0:01:43.7]} 23... exf2+
{[%clk 0:01:19.9]} 24. Kh1 {[%clk 0:01:40.4]} 24... Qd2 {[%clk 0:01:04.3]} 25.
Qf4 {[%clk 0:01:37.7]} 25... Qxf4 {[%clk 0:00:55.3]} 26. gxf4 {[%clk 0:01:38.6]}
26... Rxa8 {[%clk 0:00:53.9]} 27. Bxb7 {[%clk 0:01:38.2]} 27... Rb8 {[%clk
0:00:51.5]} 28. Bg2 {[%clk 0:01:36]} 28... Bd4 {[%clk 0:00:51.2]} 29. a5 {[%clk
0:01:26.9]} 29... Kg7 {[%clk 0:00:49.4]} 30. Bf3 {[%clk 0:01:26.7]} 30... Bc4
{[%clk 0:00:47.4]} 31. Bc6 {[%clk 0:01:20.4]} 31... Rh8+ {[%clk 0:00:37.1]} 32.
Kg2 {[%clk 0:01:20]} 32... Rh4 {[%clk 0:00:37.5]} 33. b6 {[%clk 0:01:15]} 33...
axb6 {[%clk 0:00:35.3]} 34. axb6 {[%clk 0:01:15.9]} 34... Rg4+ {[%clk
0:00:33.3]} 35. Kf3 {[%clk 0:01:13.4]} 35... Bxb6 {[%clk 0:00:32.3]} 36. Rxb6
{[%clk 0:00:21.9]} 36... Bxf1 {[%clk 0:00:31.5]} 37. Be8 {[%clk 0:00:14.4]}
37... Rxf4+ {[%clk 0:00:22.9]} 38. Kxf4 {[%clk 0:00:11.9]} 38... Bd3 {[%clk
0:00:23.2]} 39. Rb1 {[%clk 0:00:07.9]} 39... f1=Q+ {[%clk 0:00:19.2]} 40. Rxf1
{[%clk 0:00:07.1]} 40... Bxf1 {[%clk 0:00:19.3]} 41. Kg5 {[%clk 0:00:08]} 41...
f6+ {[%clk 0:00:18.1]} 42. Kf4 {[%clk 0:00:08.4]} 42... Bd3 {[%clk 0:00:18.6]}
43. Kg3 {[%clk 0:00:08.6]} 43... g5 {[%clk 0:00:17.6]} 44. Kf3 {[%clk 0:00:09]}
44... Be4+ {[%clk 0:00:17.5]} 45. Kf2 {[%clk 0:00:08.2]} 45... Kh6 {[%clk
0:00:18]} 46. Kg3 {[%clk 0:00:05.8]} 46... f4+ {[%clk 0:00:17.3]} 47. Kf2 {[%clk
0:00:01.1]} 47... f5 {[%clk 0:00:16.6]} 0-1